fUSD/lending_fUSD_20240518
["ID","MTS","AMOUNT","RATE_DAILY","PERIOD"]
[327436164,1716073843141,-500.0,0.00027397,2]
[327436165,1716073843151,-500.0,0.00027397,2]
[327436166,1716073843160,-500.0,0.00027397,2]
[327436167,1716073843170,-651.17,0.00027397,2]
[327436168,1716073843179,-500.0,0.00027397,2]
[327436169,1716073843188,-500.0,0.00027397,2]
[327436170,1716073843198,-500.0,0.00027397,2]
[327436171,1716073843207,-500.0,0.00027397,2]
[327436172,1716073843216,-500.0,0.00027397,2]
[327436173,1716073843226,-546.39,0.00027397,2]
[327436174,1716073843235,-500.0,0.00027397,2]
[327436176,1716073843245,-500.0,0.00027397,2]
[327436177,1716073843254,-500.0,0.00027397,2]
[327436178,1716073843264,-500.0,0.00027397,2]
[327436179,1716073843275,-500.0,0.00027397,2]
[327436180,1716073843286,-571.93,0.00027397,2]
[327436181,1716073843296,-500.0,0.00027397,2]
[327436182,1716073843306,-500.0,0.00027397,2]
[327436183,1716073843315,-500.0,0.00027397,2]
[327436184,1716073843325,-500.0,0.00027397,2]
[327436185,1716073843335,-478.61801605,0.00027397,2]
[327436187,1716073843344,-500.0,0.00027397,2]
[327436189,1716073843355,-500.0,0.00027397,2]
[327436191,1716073843366,-500.0,0.00027397,2]
[327436193,1716073843375,-500.0,0.00027397,2]
[327436194,1716073843385,-500.0,0.00027397,2]
[327436196,1716073843394,-690.19,0.00027397,2]
[327436197,1716073843404,-500.0,0.00027397,2]
[327436198,1716073843413,-500.0,0.00027397,2]
[327436199,1716073843425,-500.0,0.00027397,2]
[327436200,1716073843435,-500.0,0.00027397,2]
[327436202,1716073843445,-500.0,0.00027397,2]
[327436204,1716073843455,-500.0,0.00027397,2]
[327436206,1716073843464,-500.0,0.00027397,2]
[327436208,1716073843473,-500.0,0.00027397,2]
[327436210,1716073843483,-500.0,0.00027397,2]
[327436211,1716073843492,-500.0,0.00027397,2]
[327436212,1716073843501,-500.0,0.00027397,2]
[327436213,1716073843510,-500.0,0.00027397,2]
[327436214,1716073843520,-500.0,0.00027397,2]
[327436215,1716073843529,-183.99,0.00027397,2]
[327436217,1716073843539,-500.0,0.00027397,2]
[327436219,1716073843548,-500.0,0.00027397,2]
[327436221,1716073843558,-673.68,0.00027397,2]
[327436222,1716073843567,-791.51,0.00027397,2]
[327436223,1716073843576,-724.76,0.00027397,2]
[327436224,1716073843586,-500.0,0.00027397,2]
[327436226,1716073843596,-500.0,0.00027397,2]
[327436228,1716073843605,-500.0,0.00027397,2]
[327436229,1716073843615,-500.0,0.00027397,2]
[327436230,1716073843624,-500.0,0.00027397,2]
[327436231,1716073843634,-500.0,0.00027397,2]
[327436232,1716073843643,-500.0,0.00027397,2]
[327436233,1716073843652,-858.51,0.00027397,2]
[327436234,1716073843661,-568.35,0.00027397,2]
[327436236,1716073843670,-500.0,0.00027397,2]
[327436237,1716073843679,-500.0,0.00027397,2]
[327436238,1716073843688,-500.0,0.00027397,2]
[327436239,1716073843697,-668.34,0.00027397,2]
[327436240,1716073843707,-500.0,0.00027397,2]
[327436241,1716073843716,-500.0,0.00027397,2]
[327436242,1716073843725,-500.0,0.00027397,2]
[327436243,1716073843734,-603.36,0.00027397,2]
[327436244,1716073843743,-500.0,0.00027397,2]
[327436245,1716073843752,-734.78,0.00027397,2]
[327436246,1716073843762,-500.0,0.00027397,2]
[327436247,1716073843772,-613.35,0.00027397,2]
[327436248,1716073843781,-500.0,0.00027397,2]
[327436249,1716073843792,-500.0,0.00027397,2]
[327436250,1716073843805,-500.0,0.00027397,2]
[327436251,1716073843815,-500.0,0.00027397,2]
[327436252,1716073843825,-500.0,0.00027397,2]
[327436253,1716073843834,-500.0,0.00027397,2]
[327436254,1716073843843,-539.79,0.00027397,2]
[327436255,1716073843852,-500.0,0.00027397,2]
[327436256,1716073843862,-774.63,0.00027397,2]
[327436257,1716073843871,-533.88,0.00027397,2]
[327436258,1716073843880,-500.0,0.00027397,2]
[327436259,1716073843890,-1054.0,0.00027397,2]
[327436260,1716073843900,-500.0,0.00027397,2]
[327436261,1716073843909,-522.56,0.00027397,2]
[327436262,1716073843918,-516.55,0.00027397,2]
[327436263,1716073843927,-500.0,0.00027397,2]
[327436264,1716073843937,-662.88,0.00027397,2]
[327436265,1716073843946,-500.0,0.00027397,2]
[327436266,1716073843955,-500.0,0.00027397,2]
[327436267,1716073843964,-399.11710888,0.00027397,2]
[327436268,1716073843973,-500.0,0.00027397,2]
[327436269,1716073843983,-162.05,0.00027397,2]
[327436270,1716073843992,-500.0,0.00027397,2]
[327436271,1716073844001,-500.0,0.00027397,2]
[327436272,1716073844011,-500.0,0.00027397,2]
[327436273,1716073844021,-500.0,0.00027397,2]
[327436274,1716073844031,-500.0,0.00027397,2]
[327436275,1716073844041,-500.0,0.00027397,2]
[327436276,1716073844050,-591.52,0.00027397,2]
[327436277,1716073844059,-1092.15,0.00027397,2]
[327436278,1716073844069,-634.44,0.00027397,2]
[327436279,1716073844078,-500.0,0.00027397,2]
[327436280,1716073844087,-500.0,0.00027397,2]
[327436281,1716073844096,-1546.0,0.00027397,2]
[327436283,1716073844105,-500.0,0.00027397,2]
[327436285,1716073844115,-500.0,0.00027397,2]
[327436286,1716073844125,-500.0,0.00027397,2]
[327436287,1716073844135,-500.0,0.00027397,2]
[327436288,1716073844144,-500.0,0.00027397,2]
[327436289,1716073844154,-895.7,0.00027397,2]
[327436290,1716073844163,-500.0,0.00027397,2]
[327436291,1716073844172,-500.0,0.00027397,2]
[327436292,1716073844183,-500.0,0.00027397,2]
[327436293,1716073844193,-597.2,0.00027397,2]
[327436294,1716073844203,-500.0,0.00027397,2]
[327436295,1716073844214,-500.0,0.00027397,2]
[327436296,1716073844224,-500.0,0.00027397,2]
[327436297,1716073844233,-567.44,0.00027397,2]
[327436298,1716073844242,-679.54,0.00027397,2]
[327436299,1716073844253,-500.0,0.00027397,2]
[327436300,1716073844263,-500.0,0.00027397,2]
[327436302,1716073844274,-657.83,0.00027397,2]
[327436304,1716073844284,-500.0,0.00027397,2]
[327436305,1716073844295,-580.91,0.00027397,2]
[327436308,1716073844304,-500.0,0.00027397,2]
[327436310,1716073844315,-500.0,0.00027397,2]
[327436312,1716073844324,-574.86,0.00027397,2]
[327436314,1716073844333,-500.0,0.00027397,2]
[327436316,1716073844343,-500.0,0.00027397,2]
[327436318,1716073844352,-500.0,0.00027397,2]
[327436320,1716073844362,-500.0,0.00027397,2]
[327436322,1716073844371,-500.0,0.00027397,2]
[327436324,1716073844380,-500.0,0.00027397,2]
[327436326,1716073844390,-500.0,0.00027397,2]
[327436328,1716073844400,-581.02,0.00027397,2]
[327436330,1716073844409,-500.0,0.00027397,2]
[327436332,1716073844418,-500.0,0.00027397,2]
[327436334,1716073844428,-884.85,0.00027397,2]
[327436336,1716073844437,-500.0,0.00027397,2]
[327436338,1716073844447,-500.0,0.00027397,2]
[327436340,1716073844456,-977.15,0.00027397,2]
[327436342,1716073844465,-504.58,0.00027397,2]
[327436344,1716073844475,-500.0,0.00027397,2]
[327436346,1716073844484,-500.0,0.00027397,2]
[327436348,1716073844494,-500.0,0.00027397,2]
[327436351,1716073844503,-500.0,0.00027397,2]
[327436354,1716073844512,-500.0,0.00027397,2]
[327436356,1716073844521,-500.0,0.00027397,2]
[327436358,1716073844531,-523.37,0.00027397,2]
[327436360,1716073844540,-500.0,0.00027397,2]
[327436362,1716073844550,-500.0,0.00027397,2]
[327436364,1716073844560,-500.0,0.00027397,2]
[327436366,1716073844569,-671.31,0.00027397,2]
[327436368,1716073844578,-500.0,0.00027397,2]
[327436370,1716073844588,-500.0,0.00027397,2]
[327436372,1716073844597,-500.0,0.00027397,2]
[327436374,1716073844607,-500.0,0.00027397,2]
[327436375,1716073844616,-500.0,0.00027397,2]
[327436377,1716073844625,-500.0,0.00027397,2]
[327436379,1716073844634,-706.71,0.00027397,2]
[327436381,1716073844643,-500.0,0.00027397,2]
[327436383,1716073844652,-500.0,0.00027397,2]
[327436385,1716073844661,-500.0,0.00027397,2]
[327436387,1716073844671,-500.0,0.00027397,2]
[327436389,1716073844681,-500.0,0.00027397,2]
[327436391,1716073844690,-500.0,0.00027397,2]
[327436393,1716073844699,-500.0,0.00027397,2]
[327436395,1716073844708,-500.0,0.00027397,2]
[327436397,1716073844718,-500.0,0.00027397,2]
[327436400,1716073844727,-637.41,0.00027397,2]
[327436401,1716073844736,-500.0,0.00027397,2]
[327436403,1716073844746,-500.0,0.00027397,2]
[327436406,1716073844755,-500.0,0.00027397,2]
[327436407,1716073844767,-500.0,0.00027397,2]
[327436409,1716073844775,-500.0,0.00027397,2]
[327436411,1716073844785,-500.0,0.00027397,2]
[327436413,1716073844794,-891.69,0.00027397,2]
[327436416,1716073844804,-500.0,0.00027397,2]
[327436417,1716073844813,-500.0,0.00027397,2]
[327436420,1716073844823,-500.0,0.00027397,2]
[327436421,1716073844832,-500.0,0.00027397,2]
[327436424,1716073844842,-755.26,0.00027397,2]
[327436425,1716073844851,-500.0,0.00027397,2]
[327436428,1716073844861,-500.0,0.00027397,2]
[327436429,1716073844871,-500.0,0.00027397,2]
[327436432,1716073844880,-500.0,0.00027397,2]
[327436434,1716073844890,-500.0,0.00027397,2]
[327436436,1716073844899,-500.0,0.00027397,2]
[327436437,1716073844908,-500.0,0.00027397,2]
[327436440,1716073844918,-750.34,0.00027397,2]
[327436441,1716073844927,-500.0,0.00027397,2]
[327436443,1716073844936,-500.0,0.00027397,2]
[327436445,1716073844946,-523.17,0.00027397,2]
[327436448,1716073844956,-500.0,0.00027397,2]
[327436450,1716073844965,-500.0,0.00027397,2]
[327436452,1716073844975,-500.0,0.00027397,2]
[327436454,1716073844984,-500.0,0.00027397,2]
[327436456,1716073844993,-500.0,0.00027397,2]
[327436458,1716073845003,-963.47,0.00027397,2]
[327436460,1716073845012,-500.0,0.00027397,2]
[327436462,1716073845021,-572.04,0.00027397,2]
[327436464,1716073845031,-500.0,0.00027397,2]
[327436465,1716073845040,-631.82,0.00027397,2]
[327436468,1716073845050,-500.0,0.00027397,2]
[327436470,1716073845059,-500.0,0.00027397,2]
[327436472,1716073845069,-500.0,0.00027397,2]
[327436474,1716073845078,-500.0,0.00027397,2]
[327436476,1716073845088,-778.23,0.00027397,2]
[327436477,1716073845097,-500.0,0.00027397,2]
[327436479,1716073845107,-4244.72,0.00027397,2]
[327436482,1716073845116,-500.0,0.00027397,2]
[327436484,1716073845126,-500.0,0.00027397,2]
[327436485,1716073845135,-1890.57,0.00027397,2]
[327436493,1716073845197,-500.0,0.00027397,2]
[327436495,1716073845207,-519.33,0.00027397,2]
[327436497,1716073845216,-905.5,0.00027397,2]
[327436499,1716073845225,-500.0,0.00027397,2]
[327436501,1716073845235,-500.0,0.00027397,2]
[327436503,1716073845245,-500.0,0.00027397,2]
[327436505,1716073845254,-4601.51,0.00027397,2]
[327436507,1716073845263,-519.03,0.00027397,2]
[327436509,1716073845273,-636.77,0.00027397,2]
[327436511,1716073845284,-500.0,0.00027397,2]
[327436513,1716073845294,-500.0,0.00027397,2]
[327436515,1716073845304,-500.0,0.00027397,2]
[327436517,1716073845314,-500.0,0.00027397,2]
[327436519,1716073845323,-500.0,0.00027397,2]
[327436521,1716073845332,-500.0,0.00027397,2]
[327436523,1716073845341,-500.0,0.00027397,2]
[327436525,1716073845352,-538.74,0.00027397,2]
[327436527,1716073845362,-601.85,0.00027397,2]
[327436529,1716073845372,-619.21,0.00027397,2]
[327436531,1716073845381,-605.91,0.00027397,2]
[327436533,1716073845390,-500.0,0.00027397,2]
[327436535,1716073845399,-897.8,0.00027397,2]
[327436537,1716073845408,-722.9,0.00027397,2]
[327436539,1716073845418,-690.23,0.00027397,2]
[327436541,1716073845427,-7287.68,0.00027397,2]
[327436543,1716073845436,-500.0,0.00027397,2]
[327436545,1716073845445,-500.0,0.00027397,2]
[327436547,1716073845454,-500.0,0.00027397,2]
[327436549,1716073845463,-584.46,0.00027397,2]
[327436551,1716073845472,-742.22,0.00027397,2]
[327436553,1716073845481,-241.64156474,0.00027397,2]
[327436555,1716073845491,-500.0,0.00027397,2]
[327436557,1716073845501,-500.0,0.00027397,2]
[327436559,1716073845510,-628.33,0.00027397,2]
[327436561,1716073845519,-551.27,0.00027397,2]
[327436563,1716073845528,-1272.29,0.00027397,2]
[327436565,1716073845537,-533.53,0.00027397,2]
[327436567,1716073845546,-500.0,0.00027397,2]
[327436569,1716073845555,-955.26,0.00027397,2]
[327436571,1716073845565,-500.0,0.00027397,2]
[327436573,1716073845574,-500.0,0.00027397,2]
[327436575,1716073845583,-500.0,0.00027397,2]
[327436577,1716073845592,-500.0,0.00027397,2]
[327436579,1716073845601,-500.0,0.00027397,2]
[327436580,1716073845611,-1198.15,0.00027397,2]
[327436581,1716073845620,-1552.51,0.00027397,2]
[327436582,1716073845628,-500.0,0.00027397,2]
[327436583,1716073845638,-500.0,0.00027397,2]
[327436584,1716073845647,-558.68,0.00027397,2]
[327436585,1716073845656,-500.0,0.00027397,2]
[327436586,1716073845665,-500.0,0.00027397,2]
[327436587,1716073845674,-497.97675881,0.00027397,2]
[327436588,1716073845683,-888.67,0.00027397,2]
[327436589,1716073845692,-500.0,0.00027397,2]
[327436591,1716073845701,-500.0,0.00027397,2]
[327436593,1716073845710,-779.07,0.00027397,2]
[327436595,1716073845720,-500.0,0.00027397,2]
[327436597,1716073845729,-532.77713247,0.00027397,2]
[327436599,1716073845738,-500.0,0.00027397,2]
[327436601,1716073845747,-606.18,0.00027397,2]
[327436603,1716073845756,-500.0,0.00027397,2]
[327436605,1716073845765,-2488.39,0.00027397,2]
[327436607,1716073845777,-634.4,0.00027397,2]
[327436609,1716073845786,-500.0,0.00027397,2]
[327436611,1716073845795,-501.3748821,0.00027397,2]
[327436613,1716073845804,-638.87,0.00027397,2]
[327436615,1716073845813,-692.28,0.00027397,2]
[327436617,1716073845822,-500.0,0.00027397,2]
[327436619,1716073845832,-500.0,0.00027397,2]
[327436621,1716073845842,-500.0,0.00027397,2]
[327436623,1716073845851,-967.39,0.00027397,2]
[327436625,1716073845860,-500.0,0.00027397,2]
[327436627,1716073845869,-500.0,0.00027397,2]
[327436629,1716073845879,-500.0,0.00027397,2]
[327436631,1716073845888,-1467.4,0.00027397,2]
[327436633,1716073845898,-1362.22,0.00027397,2]
[327436635,1716073845907,-490.94633498,0.00027397,2]
[327436637,1716073845916,-500.0,0.00027397,2]
[327436639,1716073845925,-511.64,0.00027397,2]
[327436641,1716073845935,-646.29,0.00027397,2]
[327436642,1716073845944,-500.0,0.00027397,2]
[327436644,1716073845953,-513.51,0.00027397,2]
[327436646,1716073845962,-500.0,0.00027397,2]
[327436648,1716073845972,-500.0,0.00027397,2]
[327436650,1716073845981,-500.0,0.00027397,2]
[327436652,1716073845991,-500.0,0.00027397,2]
[327436654,1716073846000,-500.0,0.00027397,2]
[327436656,1716073846009,-229.56,0.00027397,2]
[327436658,1716073846019,-500.0,0.00027397,2]
[327436659,1716073846028,-500.0,0.00027397,2]
[327436661,1716073846038,-1035.42,0.00027397,2]
[327436663,1716073846047,-500.0,0.00027397,2]
[327436665,1716073846056,-500.0,0.00027397,2]
[327436667,1716073846065,-2365.23,0.00027397,2]
[327436669,1716073846074,-500.0,0.00027397,2]
[327436671,1716073846083,-500.0,0.00027397,2]
[327436673,1716073846093,-500.0,0.00027397,2]
[327436675,1716073846102,-1142.19,0.00027397,2]
[327436677,1716073846112,-500.0,0.00027397,2]
[327436679,1716073846120,-1718.72,0.00027397,2]
[327436681,1716073846129,-500.0,0.00027397,2]
[327436683,1716073846138,-2405.4,0.00027397,2]
[327436685,1716073846147,-500.0,0.00027397,2]
[327436686,1716073846157,-1193.77,0.00027397,2]
[327436688,1716073846166,-500.0,0.00027397,2]
[327436690,1716073846175,-500.0,0.00027397,2]
[327436692,1716073846184,-3445.89,0.00027397,2]
[327436694,1716073846193,-500.0,0.00027397,2]
[327436696,1716073846202,-500.0,0.00027397,2]
[327436698,1716073846211,-558.68,0.00027397,2]
[327436700,1716073846221,-793.78,0.00027397,2]
[327436702,1716073846230,-500.0,0.00027397,2]
[327436704,1716073846239,-500.0,0.00027397,2]
[327436706,1716073846248,-500.0,0.00027397,2]
[327436708,1716073846257,-1791.64,0.00027397,2]
[327436711,1716073846265,-684.97,0.00027397,2]
[327436714,1716073846278,-500.0,0.00027397,2]
[327436715,1716073846287,-500.0,0.00027397,2]
[327436717,1716073846296,-500.0,0.00027397,2]
[327436719,1716073846305,-500.0,0.00027397,2]
[327436721,1716073846315,-500.0,0.00027397,2]
[327436723,1716073846324,-500.0,0.00027397,2]
[327436725,1716073846332,-779.65,0.00027397,2]
[327436727,1716073846342,-500.0,0.00027397,2]
[327436729,1716073846351,-500.0,0.00027397,2]
[327436731,1716073846360,-500.0,0.00027397,2]
[327436733,1716073846370,-500.0,0.00027397,2]
[327436737,1716073846379,-500.0,0.00027397,2]
[327436739,1716073846389,-603.79,0.00027397,2]
[327436742,1716073846398,-500.0,0.00027397,2]
[327436745,1716073846407,-500.0,0.00027397,2]
[327436748,1716073846416,-500.0,0.00027397,2]
[327436750,1716073846425,-500.0,0.00027397,2]
[327436752,1716073846434,-500.0,0.00027397,2]
[327436754,1716073846443,-605.0,0.00027397,2]
[327436756,1716073846452,-500.0,0.00027397,2]
[327436758,1716073846461,-500.0,0.00027397,2]
[327436760,1716073846470,-534.83,0.00027397,2]
[327436762,1716073846479,-500.0,0.00027397,2]
[327436764,1716073846488,-500.0,0.00027397,2]
[327436766,1716073846497,-547.73643602,0.00027397,2]
[327436768,1716073846506,-517.99371945,0.00027397,2]
[327436770,1716073846515,-500.0,0.00027397,2]
[327436772,1716073846524,-500.0,0.00027397,2]
[327436774,1716073846533,-500.0,0.00027397,2]
[327436776,1716073846543,-785.33,0.00027397,2]
[327436778,1716073846552,-500.0,0.00027397,2]
[327436780,1716073846562,-500.0,0.00027397,2]
[327436781,1716073846571,-500.0,0.00027397,2]
[327436783,1716073846584,-500.0,0.00027397,2]
[327436785,1716073846594,-814.44,0.00027397,2]
[327436787,1716073846603,-500.0,0.00027397,2]
[327436789,1716073846613,-500.0,0.00027397,2]
[327436791,1716073846622,-523.31,0.00027397,2]
[327436793,1716073846631,-500.0,0.00027397,2]
[327436795,1716073846639,-500.0,0.00027397,2]
[327436797,1716073846648,-500.0,0.00027397,2]
[327436799,1716073846657,-500.0,0.00027397,2]
[327436801,1716073846666,-4140.14,0.00027397,2]
[327436803,1716073846675,-605.05,0.00027397,2]
[327436805,1716073846684,-500.0,0.00027397,2]
[327436807,1716073846693,-512.24417075,0.00027397,2]
[327436809,1716073846703,-500.0,0.00027397,2]
[327436811,1716073846711,-576.53,0.00027397,2]
[327436813,1716073846721,-500.0,0.00027397,2]
[327436815,1716073846730,-500.0,0.00027397,2]
[327436817,1716073846739,-804.14,0.00027397,2]
[327436819,1716073846748,-500.0,0.00027397,2]
[327436821,1716073846757,-500.0,0.00027397,2]
[327436823,1716073846765,-1325.55,0.00027397,2]
[327436825,1716073846774,-500.0,0.00027397,2]
[327436827,1716073846784,-1051.97,0.00027397,2]
[327436828,1716073846792,-500.0,0.00027397,2]
[327436830,1716073846802,-500.0,0.00027397,2]
[327436832,1716073846811,-948.13,0.00027397,2]
[327436834,1716073846820,-500.0,0.00027397,2]
[327436836,1716073846829,-603.56,0.00027397,2]
[327436838,1716073846838,-500.0,0.00027397,2]
[327436840,1716073846847,-1275.0,0.00027397,2]
[327436842,1716073846856,-1415.09,0.00027397,2]
[327436844,1716073846866,-2068.71,0.00027397,2]
[327436846,1716073846875,-500.0,0.00027397,2]
[327436848,1716073846884,-500.0,0.00027397,2]
[327436850,1716073846893,-531.95770079,0.00027397,2]
[327436852,1716073846902,-795.39,0.00027397,2]
[327436854,1716073846912,-500.0,0.00027397,2]
[327436856,1716073846921,-500.0,0.00027397,2]
[327436858,1716073846930,-500.0,0.00027397,2]
[327436860,1716073846939,-1053.15,0.00027397,2]
[327436862,1716073846950,-573.15,0.00027397,2]
[327436864,1716073846959,-500.0,0.00027397,2]
[327436866,1716073846969,-500.0,0.00027397,2]
[327436868,1716073846978,-500.0,0.00027397,2]
[327436870,1716073846989,-500.0,0.00027397,2]
[327436872,1716073846998,-500.0,0.00027397,2]
[327436874,1716073847007,-17829.35,0.00027397,2]
[327436876,1716073847016,-929.55,0.00027397,2]
[327436878,1716073847027,-500.0,0.00027397,2]
[327436880,1716073847036,-1011.25,0.00027397,2]
[327436882,1716073847045,-500.0,0.00027397,2]
[327436884,1716073847054,-500.0,0.00027397,2]
[327436886,1716073847063,-661.18,0.00027397,2]
[327436888,1716073847072,-171.40276767,0.00027397,2]
[327436890,1716073847081,-500.0,0.00027397,2]
[327436892,1716073847090,-1097.26,0.00027397,2]
[327436894,1716073847099,-500.0,0.00027397,2]
[327436896,1716073847108,-564.37,0.00027397,2]
[327436898,1716073847117,-1689.98,0.00027397,2]
[327436900,1716073847126,-890.91,0.00027397,2]
[327436902,1716073847135,-816.12,0.00027397,2]
[327436904,1716073847144,-521.49,0.00027397,2]
[327436906,1716073847153,-500.0,0.00027397,2]
[327436908,1716073847162,-500.0,0.00027397,2]
[327436910,1716073847171,-4000.0,0.00027397,2]
[327436912,1716073847182,-500.0,0.000274,2]
[327436914,1716073847191,-157.051908,0.00027448,10]
[327436916,1716073847200,-271.9617,0.0002757,2]
[327436918,1716073847209,-196.89576948,0.00027571,2]
[327436920,1716073847218,-300.0,0.000276,10]
[327436922,1716073847227,-973.0,0.00027632,2]
[327436924,1716073847236,-1073.667,0.00027632,2]
[327436926,1716073847245,-1262.0,0.00027632,2]
[327436927,1716073847254,-879.219,0.00027632,2]
[327436928,1716073847263,-1642.0,0.00027632,2]
[327436929,1716073847273,-612.0,0.00027632,2]
[327436930,1716073847286,-255.877,0.00027632,2]
[327436931,1716073847295,-369.332,0.00027632,2]
[327436932,1716073847304,-79872.86161207,0.00027667,4]
[327436933,1716073847341,-32078.89361022,0.00027667,4]
[327436934,1716073847352,-834.30178552,0.00027667,4]
[327436935,1716073847366,-4316.5918931,0.00027667,4]
[327436936,1716073847476,-8334.29170271,0.00027667,4]
[327436966,1716073847775,-406.24944498,0.00027667,4]
[327436968,1716073847787,-473.48421737,0.00027667,4]
[327436972,1716073847813,-1503.73217114,0.00027397,2]
[327436994,1716073848011,-1276.4995102,0.00027397,2]
[327436998,1716073848034,-7471.05831866,0.00027397,2]
[327437000,1716073848043,-25859.06821827,0.00027667,4]
[327437002,1716073848054,-60505.39391,0.00027667,4]
[327437011,1716073848133,-3597.2658725,0.00027667,4]
[327437014,1716073848146,-368.59145831,0.00027667,4]
[327437026,1716073848400,-294.20650032,0.00027667,4]
[327437027,1716073848412,-1828.61335958,0.00027667,4]
[327437028,1716073848526,-259.93831373,0.00027667,4]
[327437034,1716073848619,-815.26017648,0.0002757,2]
[327437035,1716073848631,-485.23024,0.0002757,2]
[327437036,1716073848642,-355.84958352,0.0002757,2]
[327437037,1716073848652,-713.10704317,0.00027667,4]
[327437039,1716074282887,176.52,0.00025758,120]
[327437050,1716075031731,-159.75050637,0.000237,2]
[327437051,1716075031740,-696.0,0.000238,2]
[327437052,1716075031750,-9095.98032544,0.00024108,2]
[327437053,1716075031759,-167.87058706,0.00024283,2]
[327437054,1716075031768,-215.0,0.0002433,2]
[327437055,1716075031778,-1060.0,0.0002433,2]
[327437056,1716075031787,-150.25232363,0.00024588,2]
[327437057,1716075031797,-255.21518366,0.00025466,2]
[327437058,1716075031808,-250.0,0.00025614,2]
[327437059,1716075031818,-250.0,0.0002591,2]
[327437060,1716075031827,-6452.91,0.00026041,2]
[327437061,1716075031839,-1000.0,0.00026094,2]
[327437062,1716075031848,-183.98,0.0002614,2]
[327437063,1716075031858,-493.72464688,0.00026282,2]
[327437064,1716075031870,-264.29013509,0.00026282,2]
[327437065,1716075031880,-44.48486491,0.00026499,2]
[327437066,1716075031961,-155.51513509,0.00026499,2]
[327437067,1716075031970,-157.051908,0.00027148,10]
[327437068,1716075031980,-3266.3723,0.00027197,2]
[327437069,1716075031989,-649.74369669,0.00027297,2]
[327437070,1716075032001,-165.51650331,0.00027297,2]
[327437071,1716075032010,-1919.29349669,0.00027297,2]
[327437072,1716075032022,-5580.70650331,0.00027297,2]
[327437073,1716075032031,-400.10406282,0.00027297,2]
[327437074,1716075032041,-1060.0,0.0002733,2]
[327437075,1716075032051,-200.0,0.00027348,2]
[327437076,1716075032060,-1000.0,0.00027348,2]
[327437077,1716075032070,-500.0,0.00027348,2]
[327437078,1716075032084,-200.0,0.00027348,2]
[327437079,1716075032093,-500.0,0.00027397,2]
[327437080,1716075032103,-500.0,0.00027397,2]
[327437081,1716075032112,-500.0,0.00027397,2]
[327437084,1716075032121,-500.0,0.00027397,2]
[327437086,1716075032130,-257.23668283,0.00027397,2]
[327437090,1716075032142,-242.76331717,0.00027397,2]
[327437092,1716075032152,-500.0,0.00027397,2]
[327437094,1716075032161,-327.22839511,0.00027397,2]
[327437099,1716075032232,-172.77160489,0.00027397,2]
[327437100,1716075032242,-129.13481227,0.00027397,2]
[327437102,1716075037730,-1165.6,0.0002433,2]
[327437103,1716075037837,-476.4,0.0002433,2]